bitfinex-derivatives/quotes_BTCF0:USTF0_20251119
["timestamp","ask_amount","ask_price","bid_price","bid_amount"]
[1763566065212,0.3608,91330.0,91325.0,0.2148284]
[1763566065410,0.3608,91342.0,91341.0,0.10525]
[1763566065609,0.00219803,91340.0,91328.0,0.03322]
[1763566065998,0.1095672,91335.0,91334.0,0.10525]
[1763566066202,0.1095772,91326.0,91325.0,0.00016426]
[1763566067312,0.36299803,91330.0,91325.0,0.00016426]
[1763566067313,0.109577,91327.0,91325.0,0.00016426]
[1763566067605,0.47257063,91330.0,91325.0,0.00016426]
[1763566068109,0.00219803,91330.0,91329.0,0.10525]
[1763566068301,0.1095737,91329.0,91325.0,0.00016426]
[1763566068613,0.10416,91326.0,91325.0,0.00016426]
[1763566068807,0.001,91326.0,91325.0,0.05324426]
[1763566069013,0.001,91326.0,91325.0,0.10541426]
[1763566069211,0.10516,91326.0,91325.0,0.00016426]
[1763566069408,0.10416,91326.0,91325.0,0.00016426]
[1763566070509,0.10516,91326.0,91325.0,0.00016426]
[1763566072313,0.00219803,91330.0,91325.0,0.00016426]
[1763566072314,0.00219803,91330.0,91329.0,0.10525]
[1763566072912,0.4703585,91342.0,91339.0,0.1095616]
[1763566073115,0.1095618,91339.0,91336.0,0.1095648]
[1763566073420,0.00219803,91340.0,91339.0,0.2148116]
[1763566073712,0.3608,91352.0,91342.0,0.214808]
[1763566074102,0.3608,91352.0,91342.0,0.10525]
[1763566074103,0.109552,91348.0,91342.0,0.10525]
[1763566074313,0.1095563,91344.0,91342.0,0.10525]
[1763566074512,0.1095522,91347.0,91342.0,0.10525]
[1763566075117,0.1095555,91345.0,91342.0,0.10525]
[1763566075823,0.3608,91352.0,91342.0,0.10525]
[1763566076117,0.11072106,91343.0,91342.0,0.10525]
[1763566076315,0.11072106,91343.0,91342.0,0.05308]
[1763566077112,0.00116426,91343.0,91342.0,0.10525]
[1763566080714,0.10416,91339.0,91323.0,0.07726475]
[1763566080925,0.11177043,91330.0,91329.0,0.3608]
[1763566081109,0.16119043,91330.0,91329.0,0.3608]
[1763566081313,0.16119043,91330.0,91290.0,0.30693819]
[1763566081314,0.10416,91311.0,91306.0,0.09550612]
[1763566081512,0.10416,91311.0,91290.0,0.1873184]
[1763566081513,0.1096276,91284.0,91273.0,0.21098043]
[1763566081716,0.10009,91283.0,91282.0,0.43822901]
[1763566082021,0.2097284,91275.0,91274.0,0.07396769]
[1763566082219,0.2363186,91275.0,91274.0,9e-08]
[1763566082418,0.00219803,91270.0,91238.0,0.09772788]
[1763566082620,0.03966,91246.0,91245.0,0.00016435]
[1763566082826,0.07932,91246.0,91245.0,0.00016435]
[1763566083021,0.7216,91246.0,91221.0,0.2171028]
[1763566083215,0.3608,91227.0,91220.0,0.1097037]
[1763566083420,7.893e-05,91226.0,91212.0,0.1097129]
[1763566083619,0.1097093,91216.0,91206.0,0.36107411]
[1763566083820,0.3608,91207.0,91206.0,0.10148411]
[1763566084133,0.00219803,91210.0,91207.0,0.1097201]
[1763566084423,0.00219803,91210.0,91209.0,0.04858]
[1763566084628,0.00219803,91210.0,91206.0,0.00027411]
[1763566084926,0.44012,91207.0,91206.0,0.00027411]
[1763566085622,0.3608,91207.0,91206.0,0.00027411]
[1763566085815,0.5498401,91207.0,91206.0,0.00027411]
[1763566086011,0.15005137,91200.0,91189.0,7.694e-05]
[1763566086215,0.3608,91195.0,91189.0,7.694e-05]
[1763566086414,0.00219803,91200.0,91199.0,0.10121]
[1763566086821,0.36090279,91207.0,91200.0,0.03093]
[1763566087011,0.36090279,91207.0,91189.0,7.694e-05]
[1763566087218,0.3608,91197.0,91189.0,7.694e-05]
[1763566088322,0.3608,91197.0,91196.0,0.04858]
[1763566088925,0.3608,91197.0,91196.0,0.10121]
[1763566089814,0.3608,91197.0,91189.0,7.694e-05]
[1763566090312,0.3608,91197.0,91196.0,0.04858]
[1763566090511,0.3608,91197.0,91196.0,0.10121]
[1763566090720,0.00219803,91200.0,91199.0,0.04858]
[1763566091023,0.00010279,91207.0,91206.0,0.2109313]
[1763566091320,0.00010279,91207.0,91198.0,0.3608]
[1763566091520,0.00010279,91207.0,91199.0,0.1097298]
[1763566091722,0.00010279,91207.0,91206.0,0.10121]
[1763566091911,0.00010279,91207.0,91182.0,0.1097498]
[1763566092117,0.1097365,91194.0,91180.0,0.39173]
[1763566092323,0.3608,91198.0,91180.0,0.39173]
[1763566092324,0.3608,91198.0,91190.0,0.1097406]
[1763566092821,0.3598,91198.0,91189.0,7.694e-05]
[1763566093025,0.3608,91190.0,91189.0,7.694e-05]
[1763566093226,0.36299803,91190.0,91189.0,7.694e-05]
[1763566093423,0.44231803,91190.0,91189.0,7.694e-05]
[1763566093924,0.40265803,91190.0,91189.0,7.694e-05]
[1763566094119,0.44231803,91190.0,91189.0,7.694e-05]
[1763566094320,0.36299803,91190.0,91189.0,7.694e-05]
[1763566094923,0.40265803,91190.0,91189.0,7.694e-05]
[1763566095118,0.36299803,91190.0,91189.0,7.694e-05]
[1763566095430,0.109743,91188.0,91170.0,0.39173]
[1763566095726,0.00219803,91180.0,91178.0,0.1097542]
[1763566095920,0.00219803,91180.0,91170.0,0.39173]
[1763566095921,0.00219803,91180.0,91173.0,0.1097603]
[1763566096128,0.00219803,91180.0,91177.0,0.1097552]
[1763566096524,0.1097538,91179.0,91170.0,0.39173]
[1763566096728,0.00219803,91180.0,91161.0,0.3608]
[1763566096729,0.109767,91169.0,91161.0,0.3608]
[1763566097027,0.07932,91167.0,91152.0,0.1097852]
[1763566097226,0.36299803,91170.0,91152.0,0.1407152]
[1763566097430,0.36299803,91170.0,91152.0,0.03093]
[1763566097616,0.03866,91167.0,91162.0,0.1097735]
[1763566097823,0.36299803,91170.0,91169.0,0.04858]
[1763566098217,0.36299803,91170.0,91169.0,0.10121]
[1763566098729,0.16687137,91200.0,91169.0,0.10121]
[1763566098730,0.3608,91214.0,91203.0,0.10121]
[1763566099023,0.3608,91214.0,91188.0,0.1406721]
[1763566099024,0.00219803,91210.0,91209.0,0.10121]
[1763566099228,0.00219803,91210.0,91206.0,0.03093]
[1763566099427,0.00219803,91210.0,91198.0,0.1097298]
[1763566099624,0.3608,91206.0,91202.0,0.109726]
[1763566099829,0.3608,91206.0,91205.0,0.10121]
[1763566100920,0.3618,91206.0,91205.0,0.10121]
[1763566102025,0.001,91206.0,91205.0,0.13214]
[1763566102927,6.645e-05,91209.0,91208.0,0.10121]
[1763566103123,0.3608,91234.0,91232.0,0.10969]
[1763566103324,0.3608,91234.0,91222.0,0.03093]
[1763566103525,0.3608,91224.0,91222.0,0.03093]
[1763566103726,0.3608,91224.0,91223.0,0.10121]
[1763566104025,0.3608,91234.0,91233.0,0.10121]
[1763566104225,0.3608,91263.0,91262.0,0.10121]
[1763566104535,0.00016435,91272.0,91271.0,0.04858]
[1763566104830,0.00016435,91272.0,91257.0,0.3608]
[1763566104831,0.11759,91263.0,91262.0,0.00016435]
[1763566105027,0.3608,91272.0,91262.0,0.16859725]
[1763566105233,0.00016435,91281.0,91280.0,0.12063]
[1763566105621,0.00219803,91280.0,91269.0,0.3608]
[1763566106529,0.11759,91263.0,91262.0,0.00016435]
[1763566106734,0.11859,91263.0,91262.0,0.00016435]
[1763566107430,0.11759,91263.0,91262.0,0.00016435]
[1763566108233,0.11859,91263.0,91262.0,0.00016435]
[1763566108533,0.001,91263.0,91262.0,0.00016435]
[1763566108727,0.001,91263.0,91262.0,0.05894435]
[1763566108931,0.001,91263.0,91262.0,0.12079435]
[1763566109728,0.3608,91276.0,91263.0,0.1096524]
[1763566109922,0.00219803,91270.0,91262.0,0.00016435]
[1763566110133,0.11184293,91270.0,91262.0,0.00016435]
[1763566110322,0.11759,91263.0,91262.0,0.00016435]
[1763566110527,0.3608,91266.0,91262.0,0.00016435]
[1763566110730,0.00219803,91270.0,91266.0,0.1096492]
[1763566111341,0.00319803,91270.0,91266.0,0.1096492]
[1763566111731,0.00319803,91270.0,91262.0,0.00016435]
[1763566112329,0.109648,91267.0,91262.0,0.00016435]
[1763566112632,0.00319803,91270.0,91262.0,0.00016435]
[1763566113026,0.00319803,91270.0,91263.0,0.1096528]
[1763566113238,0.00319803,91270.0,91266.0,0.109648]
[1763566113534,0.001,91267.0,91266.0,0.109648]
[1763566113732,0.001,91267.0,91266.0,0.11968]
[1763566113940,0.001,91267.0,91266.0,0.1096492]
[1763566114330,0.00219803,91270.0,91266.0,0.1096492]
[1763566114533,0.00319803,91270.0,91266.0,0.1096492]
[1763566114834,0.00319803,91270.0,91269.0,0.11968]
[1763566115539,0.001,91270.0,91269.0,0.48048]
[1763566115736,0.00016435,91281.0,91280.0,0.2293124]
[1763566115941,0.3608,91294.0,91280.0,0.3608]
[1763566116236,0.11958,91281.0,91280.0,0.3608]
[1763566117235,0.00219803,91280.0,91265.0,0.10748]
[1763566118030,0.11183093,91280.0,91275.0,0.1096383]
[1763566118338,0.00219803,91280.0,91265.0,0.10748]
[1763566118533,0.3608,91274.0,91265.0,0.10748]
[1763566118841,0.00219803,91270.0,91265.0,0.2171301]
[1763566119044,0.1096456,91269.0,91264.0,0.1096509]
[1763566119336,0.2292328,91263.0,91254.0,0.3608]
[1763566119545,0.2292328,91263.0,91246.0,0.08891176]
[1763566119546,0.06,91248.0,91247.0,0.1096712]
[1763566119737,0.05958,91245.0,91244.0,0.3608]
[1763566119935,0.10744,91262.0,91245.0,0.1096735]
[1763566120140,0.00219803,91250.0,91248.0,0.1096707]
[1763566120333,0.00219803,91250.0,91249.0,0.11968]
[1763566121036,0.00016435,91259.0,91256.0,0.1096606]
[1763566121454,0.1096615,91256.0,91248.0,0.1096707]
[1763566121745,0.1096615,91256.0,91240.0,0.00016435]
[1763566121746,0.2292593,91241.0,91240.0,0.00016435]
[1763566121943,0.1096918,91231.0,91223.0,0.00013813]
[1763566122139,0.11958,91224.0,91223.0,0.00013813]
[1763566122649,0.4704983,91226.0,91223.0,0.00013813]
[1763566122650,0.3608,91226.0,91223.0,0.00013813]
[1763566122852,0.3608,91226.0,91225.0,0.05912]
[1763566123032,0.3608,91226.0,91225.0,0.11968]
[1763566123343,0.00219803,91230.0,91229.0,0.05912]
[1763566123538,0.00219803,91230.0,91225.0,0.3608]
[1763566123733,0.1096937,91229.0,91225.0,0.3608]
[1763566123945,0.00219803,91230.0,91226.0,0.1096973]
[1763566124146,0.05958,91226.0,91223.0,0.00013813]
[1763566124447,0.06058,91226.0,91223.0,0.00013813]
[1763566124655,0.06058,91226.0,91224.0,0.1096997]
[1763566125250,0.11958,91224.0,91223.0,0.00013813]
[1763566126451,0.3608,91225.0,91223.0,0.00013813]
[1763566126635,0.001,91224.0,91223.0,0.00013813]
[1763566126831,0.001,91224.0,91223.0,0.11981813]
[1763566127033,0.00016435,91234.0,91233.0,0.2293689]
[1763566127248,0.3608,91255.0,91243.0,0.11968]
[1763566127542,0.00219803,91250.0,91249.0,0.05912]
[1763566127743,0.00219803,91250.0,91241.0,0.3608]
[1763566128132,0.3608,91244.0,91239.0,0.03702]
[1763566128451,0.00219803,91250.0,91249.0,0.11968]
[1763566128647,0.00219803,91250.0,91249.0,0.2293497]
[1763566128839,0.00016435,91254.0,91249.0,0.2293497]
[1763566128840,0.00016435,91254.0,91253.0,0.11968]
[1763566130248,0.00219803,91250.0,91248.0,0.3608]
[1763566130442,0.11186683,91250.0,91248.0,0.3608]
[1763566130638,0.00219803,91250.0,91249.0,0.11968]
[1763566130844,0.1096758,91244.0,91240.0,0.3608]
[1763566131035,0.1096716,91248.0,91243.0,0.11968]
[1763566131232,0.11186663,91250.0,91245.0,0.05912]
[1763566131436,0.00219803,91250.0,91249.0,0.2293497]
[1763566131644,0.00116435,91254.0,91253.0,0.2293449]
[1763566132350,0.00116435,91254.0,91253.0,0.11968]
[1763566132544,0.02772593,91254.0,91253.0,0.11968]
[1763566133048,0.00016435,91254.0,91253.0,0.11968]
[1763566133540,0.4704481,91267.0,91266.0,0.11968]
[1763566133856,0.3883675,91267.0,91266.0,0.11968]
[1763566134450,0.1096553,91261.0,91260.0,0.03702]
[1763566134754,0.00219803,91260.0,91257.0,0.00016435]
[1763566134947,0.49802154,91259.0,91257.0,0.00016435]
[1763566135251,0.02756384,91258.0,91257.0,0.05928435]
[1763566135444,0.00219803,91260.0,91257.0,0.05928435]
[1763566135644,0.00219803,91260.0,91258.0,0.1096589]
[1763566135950,0.00219803,91260.0,91259.0,0.11968]
[1763566136147,0.02976546,91260.0,91259.0,0.11968]
[1763566136654,0.1096577,91259.0,91257.0,0.00016435]
[1763566136854,0.38837257,91258.0,91257.0,0.00016435]
[1763566137543,0.44795257,91258.0,91257.0,0.00016435]
[1763566137948,0.50795257,91258.0,91257.0,0.00016435]
[1763566138945,0.50895257,91258.0,91257.0,0.00016435]
[1763566139340,0.1096787,91242.0,91235.0,0.10744]
[1763566139739,0.3608,91248.0,91241.0,0.2293585]
[1763566139947,0.02756693,91247.0,91246.0,0.11968]
[1763566140249,0.00219803,91250.0,91249.0,0.11968]
[1763566140458,0.00219803,91250.0,91248.0,0.03702]
[1763566140459,0.1096697,91249.0,91246.0,0.3608]
[1763566140754,0.1096805,91240.0,91237.0,0.00016435]
[1763566140949,0.47267853,91240.0,91239.0,0.09614]
[1763566141253,0.47267853,91240.0,91239.0,0.05912]
[1763566141453,0.47267853,91240.0,91237.0,5e-08]
[1763566141454,0.11958,91238.0,91237.0,5e-08]
[1763566141655,0.2292797,91224.0,91223.0,3e-08]
[1763566141951,0.00219803,91220.0,91208.0,0.05052]
[1763566142150,0.1097106,91215.0,91208.0,0.41132]
[1763566142345,0.10971,91216.0,91211.0,0.10764]
[1763566142539,0.00219803,91220.0,91219.0,0.05052]
[1763566142745,0.1096789,91242.0,91234.0,0.1096865]
[1763566143053,0.1096789,91242.0,91241.0,0.05052]
[1763566143254,0.1096789,91242.0,91232.0,0.14101]
[1763566143255,0.00219803,91240.0,91232.0,0.14101]
[1763566143454,0.1096851,91237.0,91236.0,0.05052]
[1763566143963,0.3608,91239.0,91232.0,0.1430601]
[1763566143964,0.3608,91239.0,91238.0,0.10764]
[1763566144152,0.00013383,91242.0,91241.0,0.10764]
[1763566144353,0.3608,91260.0,91259.0,0.10764]
[1763566144548,0.1096437,91271.0,91259.0,0.2172972]
[1763566144748,0.13901973,91270.0,91264.0,0.03337]
[1763566144949,0.109647,91268.0,91264.0,0.03337]
[1763566145148,0.1096458,91269.0,91264.0,0.03337]
[1763566145354,0.00219803,91270.0,91264.0,0.03337]
[1763566145553,0.1096506,91265.0,91264.0,0.14101]
[1763566146357,0.00016435,91276.0,91268.0,0.10764]
[1763566146358,0.001,91269.0,91268.0,0.10764]
[1763566146563,0.00016435,91276.0,91275.0,0.2172786]
[1763566146746,0.3608,91284.0,91283.0,0.10764]
[1763566146947,0.10744,91298.0,91292.0,0.05052]
[1763566146948,0.1096122,91298.0,91292.0,0.05052]
[1763566147149,0.02717489,91297.0,91292.0,0.05052]
[1763566147455,0.3608,91308.0,91307.0,0.14101]
[1763566147651,0.00219803,91320.0,91319.0,0.10764]
[1763566148251,0.00219803,91320.0,91307.0,0.03337]
[1763566148445,0.1096049,91304.0,91301.0,0.10744]
[1763566148649,0.4704049,91304.0,91301.0,0.10744]
[1763566149554,0.3608,91304.0,91301.0,0.10744]
[1763566149748,0.3608,91304.0,91303.0,0.05052]
[1763566150454,0.3608,91312.0,91304.0,0.1096038]
[1763566150654,0.00219803,91310.0,91309.0,0.10764]
[1763566150860,0.3608,91330.0,91314.0,0.03337]
[1763566151047,0.00219803,91320.0,91319.0,0.10764]
[1763566151251,0.00219803,91320.0,91319.0,0.05052]
[1763566151464,0.1096003,91307.0,91292.0,0.1096172]
[1763566151655,0.00219803,91310.0,91309.0,0.10764]
[1763566153160,0.00219803,91310.0,91309.0,0.05052]
[1763566153355,0.1095978,91309.0,91305.0,0.3608]
[1763566153550,0.00219803,91310.0,91297.0,0.3608]
[1763566153754,0.00219803,91310.0,91309.0,0.10764]
[1763566154262,0.00319803,91310.0,91309.0,0.10764]
[1763566155456,0.25176636,91330.0,91306.0,0.1096005]
[1763566155457,0.3608,91338.0,91328.0,0.10764]
[1763566155760,0.00219803,91330.0,91328.0,0.10764]
[1763566155969,0.47053806,91329.0,91328.0,0.10764]
[1763566156261,0.1095846,91320.0,91319.0,0.10780426]
[1763566156463,0.11178263,91320.0,91319.0,0.10780426]
[1763566156958,0.36096426,91329.0,91319.0,0.10780426]
[1763566156959,0.00016426,91329.0,91328.0,0.217215]
[1763566157165,0.00016426,91329.0,91328.0,0.10764]
[1763566158353,0.00016426,91329.0,91328.0,0.46844]
[1763566158753,0.00116426,91329.0,91328.0,0.46844]
[1763566159159,4.26e-06,91329.0,91328.0,0.46844]
[1763566159658,4.26e-06,91329.0,91328.0,0.578015]
[1763566160158,0.10957806,91329.0,91328.0,0.10764]
[1763566161160,4.26e-06,91329.0,91328.0,0.109575]
[1763566161367,0.36096426,91338.0,91337.0,0.2172042]
[1763566161864,0.3608,91355.0,91354.0,0.10764]
[1763566162065,0.4703426,91355.0,91354.0,0.10764]
[1763566162269,0.4703426,91355.0,91354.0,0.05052]
[1763566162661,0.3608,91355.0,91354.0,0.10764]
[1763566163163,0.3608,91355.0,91354.0,0.05052]
[1763566163366,0.11174783,91350.0,91345.0,0.05068426]
[1763566163569,0.00219803,91350.0,91349.0,0.46844]
[1763566163771,0.10954,91358.0,91357.0,0.10764]
[1763566163961,0.1095486,91350.0,91349.0,0.3608]
[1763566164260,0.11174663,91350.0,91349.0,0.10764]
[1763566164659,0.1095534,91346.0,91345.0,0.00016426]
[1763566164970,0.00219803,91350.0,91349.0,0.10001]
[1763566165762,0.001,91355.0,91354.0,0.2095538]
[1763566166260,0.00219803,91360.0,91359.0,0.2095478]
[1763566166474,0.00010188,91364.0,91363.0,0.209543]
[1763566166869,0.10963368,91364.0,91363.0,0.10001]
[1763566167170,0.3608,91372.0,91365.0,0.10001]
[1763566167468,0.00219803,91370.0,91365.0,0.10001]
[1763566168061,0.1095271,91368.0,91365.0,0.10001]
[1763566168568,0.00219803,91370.0,91365.0,0.10001]
[1763566169163,0.3608,91384.0,91371.0,0.10001]
[1763566169356,0.1095208,91374.0,91373.0,0.04953]
[1763566169553,0.1095208,91374.0,91373.0,0.10001]
[1763566169759,0.1095163,91377.0,91376.0,0.04953]
[1763566170164,0.1095258,91369.0,91368.0,0.00016416]
[1763566170366,0.2015858,91369.0,91368.0,0.00016416]
[1763566170553,0.00219803,91370.0,91368.0,0.00016416]
[1763566170554,0.00219803,91370.0,91368.0,0.10017416]
[1763566170762,0.00219803,91370.0,91369.0,0.2095358]
[1763566170960,0.1555558,91369.0,91368.0,0.00016416]
[1763566172170,0.1565558,91369.0,91368.0,0.00016416]
[1763566172360,0.2025858,91369.0,91368.0,0.00016416]
[1763566172666,0.001,91369.0,91368.0,0.09442416]
[1763566172858,0.001,91369.0,91368.0,0.04625416]
[1763566173063,0.08604,91369.0,91368.0,0.00016416]
[1763566173256,0.1095486,91350.0,91349.0,0.15337]
[1763566173455,0.00219803,91350.0,91349.0,0.15337]
[1763566173663,0.001,91369.0,91368.0,0.203787]
[1763566174864,0.001,91369.0,91368.0,0.09426]
[1763566175454,0.1095258,91369.0,91368.0,0.09426]
[1763566175656,0.1095258,91369.0,91360.0,0.0293]
[1763566175657,0.00219803,91370.0,91360.0,0.23084]
[1763566175858,0.1095285,91367.0,91363.0,0.04609]
[1763566176057,0.00219803,91370.0,91369.0,0.2037858]
[1763566176256,0.00219803,91370.0,91369.0,0.5645858]
[1763566176667,0.00016383,91378.0,91377.0,0.2037762]
[1763566176871,0.00016383,91378.0,91377.0,0.5645762]
[1763566177573,0.1094968,91394.0,91393.0,0.09426]
[1763566177767,0.08536,91391.0,91390.0,0.3608]
[1763566177966,0.11264646,91391.0,91390.0,0.3608]
[1763566178373,0.1095114,91381.0,91380.0,0.12356]
[1763566178667,0.3608,91394.0,91389.0,0.09426]
[1763566178868,0.00219803,91400.0,91399.0,0.09426]
[1763566179374,0.11168673,91400.0,91399.0,0.09426]
[1763566179559,0.11168673,91400.0,91395.0,0.0293]
[1763566179560,0.1094935,91396.0,91395.0,0.0293]
[1763566179764,0.04268,91391.0,91390.0,0.00016416]
[1763566180061,0.1094922,91398.0,91395.0,0.07747]
[1763566180263,0.1094922,91398.0,91390.0,0.00016416]
[1763566180264,0.1948595,91391.0,91390.0,0.00016416]
[1763566180472,0.58291311,91391.0,91390.0,0.00016416]
[1763566181772,0.1095354,91363.0,91362.0,0.1556233]
[1763566181976,0.3608,91374.0,91366.0,0.1095286]
[1763566182272,0.00219803,91370.0,91369.0,0.09426]
[1763566183571,0.00219803,91370.0,91369.0,0.2037858]
[1763566184768,0.00219803,91370.0,91369.0,0.09426]
[1763566185074,0.08855803,91370.0,91360.0,0.02946416]
[1763566185273,0.1948954,91361.0,91360.0,0.00016416]
[1763566185572,0.22220846,91361.0,91360.0,0.00016416]
[1763566185875,0.13684846,91361.0,91360.0,0.09442416]
[1763566186470,0.13684846,91361.0,91322.0,0.1388816]
[1763566186471,0.1949302,91332.0,91322.0,0.0293]
[1763566186671,0.08536,91318.0,91301.0,0.3608]
[1763566186970,0.109581,91323.0,91292.0,0.3608]
[1763566186971,0.3608,91306.0,91295.0,0.09426]
[1763566187174,0.3608,91306.0,91298.0,0.09426]
[1763566187175,0.10961,91299.0,91298.0,0.09426]
[1763566187362,0.11180663,91300.0,91299.0,0.09426]
[1763566187562,0.00219803,91300.0,91299.0,0.09426]
[1763566187871,0.00229569,91300.0,91299.0,0.09426]
[1763566189278,0.00329569,91300.0,91299.0,0.04609]
[1763566189577,0.109617,91293.0,91292.0,0.3608]
[1763566189775,0.08536,91291.0,91290.0,0.00016426]
[1763566189969,0.11262775,91291.0,91290.0,0.00016426]
[1763566190170,0.08536,91291.0,91290.0,0.00016426]
[1763566190373,0.1096374,91276.0,91273.0,0.10724]
[1763566191378,0.1096428,91272.0,91265.0,0.10989623]
[1763566191568,0.1096459,91269.0,91268.0,0.09426]
[1763566191769,0.00219803,91270.0,91269.0,0.09426]
[1763566191967,9.741e-05,91271.0,91269.0,0.09426]
[1763566192170,0.14982788,91283.0,91265.0,0.00024633]
[1763566192171,0.36096426,91284.0,91283.0,0.09426]
[1763566192673,0.36096426,91284.0,91283.0,0.203889]
[1763566192981,0.00016426,91284.0,91283.0,0.09426]
[1763566196971,0.1096386,91275.0,91274.0,0.15337]
[1763566197779,0.1545086,91275.0,91274.0,0.10728]
[1763566197985,0.1096495,91266.0,91265.0,0.04633633]
[1763566198280,0.11184363,91270.0,91265.0,0.04633633]
[1763566198475,0.11184363,91270.0,91269.0,0.04609]
[1763566198878,0.11184363,91270.0,91269.0,0.09426]
[1763566199771,0.00219803,91270.0,91269.0,0.09426]
[1763566200280,0.00016426,91284.0,91283.0,0.09426]
[1763566200481,0.00219803,91280.0,91274.0,0.10732]
[1763566200684,0.1096495,91266.0,91265.0,0.00024633]
[1763566200888,0.3608,91277.0,91276.0,0.09426]
[1763566201075,0.3608,91277.0,91265.0,0.00024633]
[1763566201076,0.1096495,91266.0,91265.0,0.04633633]
[1763566201277,0.00219803,91270.0,91265.0,0.09450633]
[1763566201472,0.00219803,91270.0,91269.0,0.09426]
[1763566201789,0.1998495,91266.0,91265.0,0.00024633]
[1763566202286,0.1998663,91252.0,91239.0,0.3608]
[1763566202479,0.1096688,91250.0,91248.0,0.09147]
[1763566202679,0.00219803,91260.0,91259.0,0.09147]
[1763566202989,0.1096719,91248.0,91247.0,0.09147]
[1763566203182,0.00219803,91250.0,91249.0,0.09147]
[1763566203384,0.00219803,91250.0,91238.0,0.00016435]
[1763566203385,0.0902,91247.0,91238.0,0.00016435]
[1763566203684,0.1096699,91249.0,91238.0,5e-08]
[1763566203685,0.1998819,91239.0,91238.0,5e-08]
[1763566203893,0.1998819,91239.0,91211.0,0.36092787]
[1763566203894,0.46812,91239.0,91212.0,0.1097138]
[1763566204085,0.00219803,91220.0,91211.0,0.00012787]
[1763566204384,0.00219803,91220.0,91218.0,0.45227]
[1763566204385,8.232e-05,91219.0,91218.0,0.45227]
[1763566204974,8.232e-05,91219.0,91218.0,0.5619772]
[1763566205377,8.232e-05,91219.0,91218.0,0.45227]
[1763566205789,0.36096445,91228.0,91227.0,0.09147]
[1763566205982,0.36096445,91228.0,91227.0,0.2011663]
[1763566205983,0.00016445,91228.0,91227.0,0.2011663]
[1763566206297,0.3608,91239.0,91238.0,0.2011531]
[1763566206583,0.3608,91239.0,91238.0,0.09147]
[1763566206782,0.3608,91239.0,91238.0,0.2011531]
[1763566207088,0.00219803,91240.0,91239.0,0.09147]
[1763566207286,0.09239803,91240.0,91230.0,0.36096445]
[1763566207485,0.1096902,91233.0,91230.0,0.00016445]
[1763566207784,0.1096908,91232.0,91230.0,0.00016445]
[1763566207987,0.0902,91231.0,91230.0,0.00016445]
[1763566208189,0.1097144,91212.0,91210.0,0.3608]
[1763566208383,0.3608,91231.0,91210.0,0.3608]
[1763566208384,0.1097084,91217.0,91210.0,0.3608]
[1763566208584,0.1097144,91212.0,91210.0,0.3608]
[1763566208883,0.1097144,91212.0,91205.0,0.109722]
[1763566209288,0.1515244,91212.0,91202.0,0.36096445]
[1763566209589,0.1999144,91212.0,91203.0,0.1097251]
[1763566209890,0.1999144,91212.0,91206.0,0.1097212]
[1763566210280,0.1999144,91212.0,91202.0,0.36096445]
[1763566210481,0.1999144,91212.0,91206.0,0.00027411]
[1763566211088,0.2009144,91212.0,91206.0,0.00027411]
[1763566211282,0.1999144,91212.0,91206.0,0.00027411]
[1763566211496,0.1515304,91207.0,91206.0,0.00027411]
[1763566211686,0.04181,91207.0,91206.0,0.00027411]
[1763566211881,0.0902,91207.0,91206.0,0.00027411]
[1763566212277,0.11191493,91210.0,91206.0,0.00027411]
[1763566212482,0.0902,91207.0,91206.0,0.00027411]
[1763566213285,0.0902,91203.0,91202.0,0.00016445]
[1763566213793,0.451,91203.0,91202.0,0.00016445]
[1763566214688,0.451,91203.0,91202.0,0.09163445]
[1763566214689,0.3608,91203.0,91202.0,0.09163445]
[1763566214891,8.679e-05,91209.0,91208.0,0.2011892]
[1763566215094,0.1097192,91208.0,91202.0,0.00016445]
[1763566215291,0.04181,91203.0,91202.0,0.00016445]
[1763566215594,8.679e-05,91209.0,91202.0,0.00016445]
[1763566215797,0.04181,91203.0,91202.0,0.00016445]
[1763566215996,0.3608,91204.0,91203.0,0.09147]
[1763566216193,0.1097234,91205.0,91203.0,0.09147]
[1763566216496,8.679e-05,91209.0,91202.0,0.00016445]
[1763566216497,0.1999252,91203.0,91202.0,0.00016445]
[1763566216688,0.04181,91203.0,91202.0,0.00016445]
[1763566216889,0.3608,91204.0,91203.0,0.09147]
[1763566217489,0.00108679,91209.0,91208.0,0.09147]
[1763566217691,8.679e-05,91209.0,91208.0,0.09147]
[1763566218487,0.3608,91225.0,91220.0,0.2011748]
[1763566218893,0.3608,91249.0,91248.0,0.11891]
[1763566219093,0.3608,91259.0,91258.0,0.09147]
[1763566219293,0.1096673,91252.0,91248.0,0.02744]
[1763566219490,4.108e-05,91251.0,91248.0,0.02744]
[1763566219692,0.3608,91249.0,91246.0,0.10736]
[1763566219890,0.1096711,91248.0,91246.0,0.10736]
[1763566220096,0.1096795,91241.0,91238.0,0.00016445]
[1763566220292,0.1096819,91239.0,91238.0,0.00016445]
[1763566220495,0.1998819,91239.0,91238.0,0.00016445]
[1763566220693,0.1096952,91228.0,91227.0,0.3608]
[1763566220895,0.51282591,91240.0,91219.0,0.09147]
[1763566220896,0.109705,91220.0,91219.0,0.09147]
[1763566221097,0.11194411,91220.0,91219.0,0.09147]
[1763566221286,0.00223911,91220.0,91219.0,0.09147]
[1763566221485,0.00223911,91220.0,91219.0,0.45227]
[1763566221692,0.11194391,91220.0,91219.0,0.45227]
[1763566221898,0.00223911,91220.0,91219.0,0.09147]
[1763566222298,4.108e-05,91220.0,91219.0,0.09147]
[1763566222491,0.00016445,91229.0,91228.0,0.09147]
[1763566223698,0.00016445,91229.0,91227.0,0.1096953]
[1763566223699,0.3608,91240.0,91239.0,0.1893519]
[1763566223897,0.3608,91249.0,91248.0,0.10362]
[1763566224495,0.08143,91245.0,91237.0,0.10736]
[1763566224697,0.00219803,91250.0,91216.0,0.3608]
[1763566224698,0.109708,91218.0,91216.0,0.3608]
[1763566224898,0.08143,91217.0,91204.0,0.10736]
[1763566225203,0.151518,91209.0,91208.0,0.00016445]
[1763566225403,0.109718,91209.0,91208.0,0.00016445]
[1763566226302,0.151518,91209.0,91208.0,0.00016445]
[1763566226511,0.191148,91209.0,91208.0,0.00016445]
[1763566227008,0.191148,91209.0,91188.0,0.07967]
[1763566227009,0.1097383,91193.0,91188.0,0.07967]
[1763566227307,0.1097335,91197.0,91192.0,0.10736]
[1763566227506,0.00219803,91200.0,91191.0,0.1097395]
[1763566227706,0.00219803,91200.0,91191.0,0.10736]
[1763566227910,0.1097359,91195.0,91191.0,0.10736]